[Event "Titled Tuesday Blitz June 13 Early 2023"]
[White "Fiorito, Joaquin"]
[Black "krucki03"]
[WhiteFideId "180173"]
[WhiteElo "2199"]
[BlackElo "2465"]
[Result "0-1"]
[Round "5"]
[TimeControl "180+2"]
[Date "2023.06.13"]
[WhiteClock "0:00:00"]
[BlackClock "0:00:10"]
[Board "79"]

1. d4 {[%clk 0:03:00]}  Nf6 {[%clk 0:02:59]} 2. c4 {[%clk 0:03:00]}  c5 {[%clk 0:02:59]} 3. d5 {[%clk 0:03:00]}  b5 {[%clk 0:02:59]} 4. Qc2 {[%clk 0:03:00]}  bxc4 {[%clk 0:02:59]} 5. e4 {[%clk 0:02:59]}  d6 {[%clk 0:02:59]} 6. Bxc4 {[%clk 0:03:00]}  g6 {[%clk 0:03:00]} 7. Nf3 {[%clk 0:02:58]}  Bg7 {[%clk 0:03:00]} 8. O-O {[%clk 0:02:59]}  O-O {[%clk 0:03:00]} 9. Nc3 {[%clk 0:02:58]}  Nbd7 {[%clk 0:03:00]} 10. h3 {[%clk 0:02:52]}  Nb6 {[%clk 0:03:00]} 11. Be2 {[%clk 0:02:51]}  a5 {[%clk 0:02:59]} 12. Bf4 {[%clk 0:02:44]}  Ne8 {[%clk 0:02:59]} 13. Rfd1 {[%clk 0:02:39]}  Nc7 {[%clk 0:02:59]} 14. e5 {[%clk 0:02:33]}  Bf5 {[%clk 0:02:58]} 15. Bd3 {[%clk 0:02:29]}  Ncxd5 {[%clk 0:02:48]} 16. Bxf5 {[%clk 0:01:54]}  Nxf4 {[%clk 0:02:35]} 17. Qe4 {[%clk 0:01:47]}  Nh5 {[%clk 0:01:35]} 18. g4 {[%clk 0:01:01]}  gxf5 {[%clk 0:01:05]} 19. Qxf5 {[%clk 0:01:02]}  e6 {[%clk 0:01:06]} 20. Qxh5 {[%clk 0:01:01]}  d5 {[%clk 0:01:06]} 21. Ne4 {[%clk 0:00:55]}  Nd7 {[%clk 0:00:58]} 22. Ng3 {[%clk 0:00:24]}  Rb8 {[%clk 0:00:56]} 23. b3 {[%clk 0:00:24]}  Rb4 {[%clk 0:00:52]} 24. Rac1 {[%clk 0:00:22]}  a4 {[%clk 0:00:49]} 25. Rd3 {[%clk 0:00:18]}  axb3 {[%clk 0:00:48]} 26. axb3 {[%clk 0:00:19]}  Qe7 {[%clk 0:00:42]} 27. Ng5 {[%clk 0:00:13]}  h6 {[%clk 0:00:41]} 28. Nf3 {[%clk 0:00:13]}  Rfb8 {[%clk 0:00:40]} 29. Rcc3 {[%clk 0:00:08]}  Nf8 {[%clk 0:00:37]} 30. g5 {[%clk 0:00:08]}  hxg5 {[%clk 0:00:24]} 31. Nxg5 {[%clk 0:00:09]}  Ng6 {[%clk 0:00:22]} 32. Rf3 {[%clk 0:00:09]}  Rh4 {[%clk 0:00:21]} 33. Rxf7 {[%clk 0:00:06]}  Rxh5 {[%clk 0:00:17]} 34. Rxe7 {[%clk 0:00:06]}  Rxg5 {[%clk 0:00:17]} 35. Rxe6 {[%clk 0:00:06]}  Nf4 {[%clk 0:00:10]} 36. Rc6 {[%clk 0:00:00]}  Ne2+ {[%clk 0:00:10]} 0-1


[Site "https://www.chess.com"]

[Event "Titled Tuesday Blitz June 13 Early 2023"]
[White "Wadsworth, Matthew J"]
[Black "a-z30"]
[WhiteFideId "415804"]
[WhiteElo "2347"]
[BlackElo "2448"]
[Result "1-0"]
[Round "5"]
[TimeControl "180+2"]
[Date "2023.06.13"]
[WhiteClock "0:00:46"]
[BlackClock "0:00:00"]
[Board "80"]

1. Nf3 {[%clk 0:03:00]}  d6 {[%clk 0:03:00]} 2. g3 {[%clk 0:03:00]}  Nf6 {[%clk 0:03:01]} 3. Bg2 {[%clk 0:03:00]}  g6 {[%clk 0:03:02]} 4. O-O {[%clk 0:03:01]}  Bg7 {[%clk 0:03:03]} 5. c4 {[%clk 0:03:01]}  O-O {[%clk 0:03:04]} 6. Nc3 {[%clk 0:03:01]}  c5 {[%clk 0:03:03]} 7. d4 {[%clk 0:03:00]}  Nc6 {[%clk 0:03:03]} 8. dxc5 {[%clk 0:03:00]}  dxc5 {[%clk 0:03:03]} 9. Be3 {[%clk 0:03:01]}  b6 {[%clk 0:02:37]} 10. Qxd8 {[%clk 0:02:40]}  Rxd8 {[%clk 0:02:37]} 11. Ne5 {[%clk 0:02:19]}  Nxe5 {[%clk 0:02:36]} 12. Bxa8 {[%clk 0:02:18]}  Nxc4 {[%clk 0:02:17]} 13. Bc1 {[%clk 0:02:18]}  Bh3 {[%clk 0:01:41]} 14. Bg2 {[%clk 0:02:13]}  Bxg2 {[%clk 0:01:41]} 15. Kxg2 {[%clk 0:02:14]}  Nd5 {[%clk 0:01:38]} 16. Nxd5 {[%clk 0:01:54]}  Rxd5 {[%clk 0:01:38]} 17. Rb1 {[%clk 0:01:53]}  b5 {[%clk 0:01:33]} 18. b3 {[%clk 0:01:50]}  Nd6 {[%clk 0:01:27]} 19. Bb2 {[%clk 0:01:46]}  Bxb2 {[%clk 0:01:19]} 20. Rxb2 {[%clk 0:01:43]}  b4 {[%clk 0:00:51]} 21. Rbb1 {[%clk 0:01:13]}  Rd2 {[%clk 0:00:46]} 22. Rfd1 {[%clk 0:01:06]}  Rxa2 {[%clk 0:00:34]} 23. Kf1 {[%clk 0:01:00]}  Ne4 {[%clk 0:00:20]} 24. Ra1 {[%clk 0:00:57]}  Rb2 {[%clk 0:00:19]} 25. Rxa7 {[%clk 0:00:55]}  Rxb3 {[%clk 0:00:08]} 26. Rxe7 {[%clk 0:00:55]}  Nc3 {[%clk 0:00:03]} 27. Rdd7 {[%clk 0:00:53]}  Rb1+ {[%clk 0:00:02]} 28. Kg2 {[%clk 0:00:50]}  b3 {[%clk 0:00:02]} 29. Rxf7 {[%clk 0:00:49]}  b2 {[%clk 0:00:02]} 30. Rg7+ {[%clk 0:00:47]}  Kh8 {[%clk 0:00:01]} 31. Rxh7+ {[%clk 0:00:47]}  Kg8 {[%clk 0:00:02]} 32. Rdg7+ {[%clk 0:00:47]}  Kf8 {[%clk 0:00:02]} 33. Rb7 {[%clk 0:00:47]}  Kg8 {[%clk 0:00:00]} 34. Rhc7 {[%clk 0:00:46]} 1-0


[Site "https://www.chess.com"]

[Event "Titled Tuesday Blitz June 13 Early 2023"]
[White "Rian, Kapriaga"]
[Black "Aditya Mittal"]
[WhiteFideId "7103263"]
[BlackFideId "35042025"]
[WhiteElo "2357"]
[BlackElo "2421"]
[Result "0-1"]
[Round "5"]
[TimeControl "180+2"]
[Date "2023.06.13"]
[WhiteClock "0:00:04"]
[BlackClock "0:00:06"]
[Board "82"]

1. d4 {[%clk 0:02:54]}  Nf6 {[%clk 0:03:00]} 2. c4 {[%clk 0:02:53]}  e6 {[%clk 0:03:00]} 3. g3 {[%clk 0:02:53]}  d5 {[%clk 0:03:00]} 4. Nf3 {[%clk 0:02:52]}  Bb4+ {[%clk 0:02:56]} 5. Bd2 {[%clk 0:02:48]}  Be7 {[%clk 0:02:56]} 6. Bg2 {[%clk 0:02:44]}  O-O {[%clk 0:02:57]} 7. O-O {[%clk 0:02:41]}  c6 {[%clk 0:02:57]} 8. Qc2 {[%clk 0:02:39]}  Nbd7 {[%clk 0:02:58]} 9. Rd1 {[%clk 0:02:30]}  h6 {[%clk 0:02:58]} 10. Bf4 {[%clk 0:02:29]}  Ne4 {[%clk 0:02:47]} 11. Nfd2 {[%clk 0:02:26]}  g5 {[%clk 0:02:39]} 12. Be3 {[%clk 0:02:22]}  f5 {[%clk 0:02:39]} 13. Nxe4 {[%clk 0:02:21]}  fxe4 {[%clk 0:02:38]} 14. Rf1 {[%clk 0:02:17]}  Kg7 {[%clk 0:02:04]} 15. Nd2 {[%clk 0:02:16]}  Nf6 {[%clk 0:02:00]} 16. f3 {[%clk 0:02:14]}  exf3 {[%clk 0:02:00]} 17. Nxf3 {[%clk 0:02:13]}  Ng4 {[%clk 0:01:32]} 18. Bd2 {[%clk 0:02:10]}  Qe8 {[%clk 0:01:18]} 19. h3 {[%clk 0:02:03]}  Nf6 {[%clk 0:01:19]} 20. Ne5 {[%clk 0:02:00]}  Bd6 {[%clk 0:01:18]} 21. c5 {[%clk 0:01:42]}  Bxe5 {[%clk 0:01:07]} 22. dxe5 {[%clk 0:01:41]}  Nd7 {[%clk 0:01:08]} 23. Rxf8 {[%clk 0:01:41]}  Nxf8 {[%clk 0:01:09]} 24. Rf1 {[%clk 0:01:37]}  Bd7 {[%clk 0:01:08]} 25. h4 {[%clk 0:01:31]}  Nh7 {[%clk 0:01:01]} 26. hxg5 {[%clk 0:01:24]}  hxg5 {[%clk 0:01:02]} 27. Qb3 {[%clk 0:00:33]}  Rb8 {[%clk 0:00:57]} 28. Qa4 {[%clk 0:00:29]}  a6 {[%clk 0:00:55]} 29. Qg4 {[%clk 0:00:23]}  Qg6 {[%clk 0:00:53]} 30. Bf3 {[%clk 0:00:16]}  Rf8 {[%clk 0:00:49]} 31. Kg2 {[%clk 0:00:14]}  Qf5 {[%clk 0:00:37]} 32. Qh5 {[%clk 0:00:13]}  Be8 {[%clk 0:00:38]} 33. Qh2 {[%clk 0:00:11]}  Bg6 {[%clk 0:00:16]} 34. Rh1 {[%clk 0:00:10]}  g4 {[%clk 0:00:13]} 35. Bh6+ {[%clk 0:00:08]}  Kg8 {[%clk 0:00:14]} 36. Bxf8 {[%clk 0:00:08]}  gxf3+ {[%clk 0:00:14]} 37. exf3 {[%clk 0:00:09]}  Qc2+ {[%clk 0:00:11]} 38. Kh3 {[%clk 0:00:08]}  Ng5+ {[%clk 0:00:05]} 39. Kg4 {[%clk 0:00:05]}  Qf5+ {[%clk 0:00:05]} 40. Kh4 {[%clk 0:00:04]}  Nxf3# {[%clk 0:00:06]} 0-1


[Site "https://www.chess.com"]

[Event "Titled Tuesday Blitz June 13 Early 2023"]
[White "Ai, Evan"]
[Black "Horvath, Dominik"]
[WhiteFideId "2094770"]
[BlackFideId "1642561"]
[WhiteElo "1963"]
[BlackElo "2407"]
[Result "0-1"]
[Round "5"]
[TimeControl "180+2"]
[Date "2023.06.13"]
[WhiteClock "0:00:33"]
[BlackClock "0:01:56"]
[Board "83"]

1. e4 {[%clk 0:02:58]}  f5 {[%clk 0:02:46]} 2. exf5 {[%clk 0:02:58]}  Kf7 {[%clk 0:02:46]} 3. Qh5+ {[%clk 0:02:56]}  g6 {[%clk 0:02:45]} 4. fxg6+ {[%clk 0:02:57]}  Kg7 {[%clk 0:02:45]} 5. gxh7 {[%clk 0:02:43]}  Rxh7 {[%clk 0:02:43]} 6. Qg5+ {[%clk 0:02:42]}  Kh8 {[%clk 0:02:40]} 7. Bd3 {[%clk 0:02:41]}  Bh6 {[%clk 0:02:36]} 8. Qe5+ {[%clk 0:02:08]}  Rg7 {[%clk 0:02:34]} 9. b3 {[%clk 0:01:58]}  d6 {[%clk 0:02:34]} 10. Qh5 {[%clk 0:01:51]}  e5 {[%clk 0:02:29]} 11. Ne2 {[%clk 0:01:41]}  Bg4 {[%clk 0:02:26]} 12. Qxg4 {[%clk 0:01:30]}  Rxg4 {[%clk 0:02:25]} 13. Ng3 {[%clk 0:01:30]}  Nc6 {[%clk 0:02:25]} 14. Bb2 {[%clk 0:01:30]}  Nb4 {[%clk 0:02:24]} 15. Bf5 {[%clk 0:01:29]}  Rf4 {[%clk 0:02:22]} 16. a3 {[%clk 0:01:18]}  Rxf5 {[%clk 0:02:22]} 17. axb4 {[%clk 0:01:18]}  Rf8 {[%clk 0:02:22]} 18. Nc3 {[%clk 0:01:18]}  c6 {[%clk 0:02:17]} 19. O-O-O {[%clk 0:01:16]}  a5 {[%clk 0:02:17]} 20. b5 {[%clk 0:01:15]}  a4 {[%clk 0:02:16]} 21. bxa4 {[%clk 0:01:14]}  cxb5 {[%clk 0:02:16]} 22. axb5 {[%clk 0:01:15]}  Rxf2 {[%clk 0:02:09]} 23. Nge4 {[%clk 0:01:03]}  Rxg2 {[%clk 0:02:09]} 24. Kb1 {[%clk 0:01:03]}  Nf6 {[%clk 0:02:06]} 25. Nxf6 {[%clk 0:00:49]}  Qxf6 {[%clk 0:02:03]} 26. d4 {[%clk 0:00:50]}  Bg7 {[%clk 0:02:00]} 27. Nd5 {[%clk 0:00:40]}  Qf5 {[%clk 0:01:58]} 28. Ne3 {[%clk 0:00:40]}  Qf7 {[%clk 0:01:54]} 29. Nxg2 {[%clk 0:00:39]}  Qa2+ {[%clk 0:01:55]} 30. Kc1 {[%clk 0:00:40]}  Bh6+ {[%clk 0:01:55]} 31. Rd2 {[%clk 0:00:36]}  Bxd2+ {[%clk 0:01:56]} 32. Kxd2 {[%clk 0:00:33]}  Qxb2 {[%clk 0:01:56]} 0-1


[Site "https://www.chess.com"]

[Event "Titled Tuesday Blitz June 13 Early 2023"]
[White "Bryakin, Mikhail"]
[Black "Tokman, Ariel"]
[WhiteFideId "4165314"]
[BlackFideId "117420"]
[WhiteElo "2464"]
[BlackElo "2263"]
[Result "1-0"]
[Round "5"]
[TimeControl "180+2"]
[Date "2023.06.13"]
[WhiteClock "0:02:11"]
[BlackClock "0:00:00"]
[Board "85"]

1. c4 {[%clk 0:03:00]}  Nf6 {[%clk 0:02:58]} 2. Nf3 {[%clk 0:03:00]}  c6 {[%clk 0:02:56]} 3. e3 {[%clk 0:02:57]}  d5 {[%clk 0:02:55]} 4. b3 {[%clk 0:02:58]}  Bg4 {[%clk 0:02:52]} 5. Be2 {[%clk 0:02:57]}  e6 {[%clk 0:02:52]} 6. Bb2 {[%clk 0:02:58]}  Nbd7 {[%clk 0:02:52]} 7. O-O {[%clk 0:02:57]}  Bd6 {[%clk 0:02:47]} 8. h3 {[%clk 0:02:56]}  Bh5 {[%clk 0:02:33]} 9. cxd5 {[%clk 0:02:56]}  exd5 {[%clk 0:02:32]} 10. Nd4 {[%clk 0:02:56]}  Bxe2 {[%clk 0:02:30]} 11. Qxe2 {[%clk 0:02:57]}  O-O {[%clk 0:02:29]} 12. f4 {[%clk 0:02:56]}  Re8 {[%clk 0:02:27]} 13. Nc3 {[%clk 0:02:53]}  Bc5 {[%clk 0:02:22]} 14. Qd3 {[%clk 0:02:47]}  Bb6 {[%clk 0:02:17]} 15. b4 {[%clk 0:02:41]}  Nf8 {[%clk 0:02:03]} 16. Na4 {[%clk 0:02:32]}  Bc7 {[%clk 0:01:45]} 17. Nc5 {[%clk 0:02:31]}  Rb8 {[%clk 0:01:28]} 18. Rac1 {[%clk 0:02:30]}  N8d7 {[%clk 0:01:14]} 19. Nf5 {[%clk 0:02:28]}  Nxc5 {[%clk 0:01:12]} 20. bxc5 {[%clk 0:02:27]}  Re6 {[%clk 0:00:45]} 21. Bd4 {[%clk 0:02:24]}  Ne8 {[%clk 0:00:28]} 22. g4 {[%clk 0:02:24]}  Qd7 {[%clk 0:00:25]} 23. Kg2 {[%clk 0:02:23]}  Re4 {[%clk 0:00:13]} 24. Ng3 {[%clk 0:02:22]}  Re6 {[%clk 0:00:10]} 25. Rf3 {[%clk 0:02:23]}  Nf6 {[%clk 0:00:08]} 26. Nf5 {[%clk 0:02:16]}  g6 {[%clk 0:00:05]} 27. Nh6+ {[%clk 0:02:14]}  Kf8 {[%clk 0:00:06]} 28. f5 {[%clk 0:02:13]}  gxf5 {[%clk 0:00:00]} 29. Qxf5 {[%clk 0:02:11]} 1-0


[Site "https://www.chess.com"]

[Event "Titled Tuesday Blitz June 13 Early 2023"]
[White "Santos Flores, Alberto"]
[Black "Hayrapetyan, Hovik"]
[WhiteFideId "3601234"]
[BlackFideId "13302639"]
[WhiteElo "2235"]
[BlackElo "2348"]
[Result "0-1"]
[Round "5"]
[TimeControl "180+2"]
[Date "2023.06.13"]
[WhiteClock "0:00:00"]
[BlackClock "0:00:08"]
[Board "86"]

1. e4 {[%clk 0:03:00]}  c5 {[%clk 0:02:59]} 2. Nf3 {[%clk 0:03:01]}  d6 {[%clk 0:02:58]} 3. Bb5+ {[%clk 0:03:01]}  Nd7 {[%clk 0:02:58]} 4. d4 {[%clk 0:03:01]}  cxd4 {[%clk 0:02:56]} 5. Qxd4 {[%clk 0:03:02]}  a6 {[%clk 0:02:56]} 6. Bxd7+ {[%clk 0:03:01]}  Bxd7 {[%clk 0:02:57]} 7. Nc3 {[%clk 0:03:02]}  Nf6 {[%clk 0:02:50]} 8. Bg5 {[%clk 0:03:02]}  e6 {[%clk 0:02:47]} 9. O-O-O {[%clk 0:03:02]}  Be7 {[%clk 0:02:43]} 10. e5 {[%clk 0:02:53]}  dxe5 {[%clk 0:02:41]} 11. Nxe5 {[%clk 0:02:54]}  Bc6 {[%clk 0:02:35]} 12. Nxc6 {[%clk 0:02:51]}  bxc6 {[%clk 0:02:36]} 13. Qxd8+ {[%clk 0:02:38]}  Rxd8 {[%clk 0:02:35]} 14. Rxd8+ {[%clk 0:02:38]}  Kxd8 {[%clk 0:02:36]} 15. Bxf6 {[%clk 0:02:33]}  gxf6 {[%clk 0:02:32]} 16. g3 {[%clk 0:02:26]}  f5 {[%clk 0:02:29]} 17. Ne2 {[%clk 0:02:20]}  h5 {[%clk 0:02:24]} 18. h4 {[%clk 0:02:18]}  Bd6 {[%clk 0:02:21]} 19. c4 {[%clk 0:02:15]}  c5 {[%clk 0:02:17]} 20. Kd2 {[%clk 0:02:13]}  Ke7 {[%clk 0:01:27]} 21. Ke3 {[%clk 0:02:12]}  Be5 {[%clk 0:01:15]} 22. b3 {[%clk 0:02:11]}  a5 {[%clk 0:01:15]} 23. Nf4 {[%clk 0:01:44]}  a4 {[%clk 0:01:07]} 24. bxa4 {[%clk 0:01:22]}  Bd4+ {[%clk 0:00:56]} 25. Kf3 {[%clk 0:01:20]}  Ra8 {[%clk 0:00:40]} 26. Nxh5 {[%clk 0:01:20]}  Rxa4 {[%clk 0:00:32]} 27. Nf4 {[%clk 0:01:16]}  Rxa2 {[%clk 0:00:23]} 28. Ne2 {[%clk 0:01:15]}  Bg7 {[%clk 0:00:11]} 29. h5 {[%clk 0:01:10]}  Bh6 {[%clk 0:00:11]} 30. Rh4 {[%clk 0:00:18]}  e5 {[%clk 0:00:08]} 31. Ng1 {[%clk 0:00:14]}  Rc2 {[%clk 0:00:05]} 32. Kg2 {[%clk 0:00:12]}  Ke6 {[%clk 0:00:04]} 33. Nf3 {[%clk 0:00:08]}  e4 {[%clk 0:00:05]} 34. Ne1 {[%clk 0:00:07]}  Rc1 {[%clk 0:00:03]} 35. Kf1 {[%clk 0:00:07]}  Bd2 {[%clk 0:00:03]} 36. Ke2 {[%clk 0:00:07]}  Bxe1 {[%clk 0:00:03]} 37. h6 {[%clk 0:00:07]}  Bc3 {[%clk 0:00:03]} 38. h7 {[%clk 0:00:07]}  Bh8 {[%clk 0:00:04]} 39. Rh6+ {[%clk 0:00:08]}  Ke7 {[%clk 0:00:03]} 40. Rc6 {[%clk 0:00:08]}  Kf8 {[%clk 0:00:03]} 41. Rxc5 {[%clk 0:00:08]}  Kg7 {[%clk 0:00:04]} 42. Rxf5 {[%clk 0:00:08]}  Rxc4 {[%clk 0:00:03]} 43. Ke3 {[%clk 0:00:08]}  f6 {[%clk 0:00:03]} 44. Rf4 {[%clk 0:00:07]}  Kxh7 {[%clk 0:00:04]} 45. Rxe4 {[%clk 0:00:07]}  Rxe4+ {[%clk 0:00:04]} 46. Kxe4 {[%clk 0:00:08]}  Kg6 {[%clk 0:00:04]} 47. f4 {[%clk 0:00:08]}  f5+ {[%clk 0:00:05]} 48. Kd5 {[%clk 0:00:07]}  Kh5 {[%clk 0:00:06]} 49. Ke6 {[%clk 0:00:07]}  Kg4 {[%clk 0:00:07]} 50. Kf7 {[%clk 0:00:06]}  Bc3 {[%clk 0:00:07]} 51. Kg6 {[%clk 0:00:00]}  Be1 {[%clk 0:00:08]} 0-1


[Site "https://www.chess.com"]

[Event "Titled Tuesday Blitz June 13 Early 2023"]
[White "Kozak, Antoni"]
[Black "cristianserban1"]
[WhiteFideId "21832030"]
[WhiteElo "2470"]
[BlackElo "2499"]
[Result "0-1"]
[Round "5"]
[TimeControl "180+2"]
[Date "2023.06.13"]
[WhiteClock "0:00:04"]
[BlackClock "0:00:07"]
[Board "89"]

1. e3 {[%clk 0:03:00]}  d5 {[%clk 0:02:57]} 2. b3 {[%clk 0:03:00]}  Nf6 {[%clk 0:02:57]} 3. Bb2 {[%clk 0:02:59]}  c5 {[%clk 0:02:56]} 4. d3 {[%clk 0:02:54]}  Nc6 {[%clk 0:02:56]} 5. Nd2 {[%clk 0:02:55]}  e5 {[%clk 0:02:54]} 6. g3 {[%clk 0:02:55]}  Be7 {[%clk 0:02:49]} 7. Ne2 {[%clk 0:02:55]}  O-O {[%clk 0:02:49]} 8. Bg2 {[%clk 0:02:56]}  Be6 {[%clk 0:02:45]} 9. h3 {[%clk 0:02:54]}  d4 {[%clk 0:02:38]} 10. Bxc6 {[%clk 0:02:52]}  bxc6 {[%clk 0:02:38]} 11. e4 {[%clk 0:02:53]}  Ne8 {[%clk 0:02:35]} 12. Nf3 {[%clk 0:02:46]}  Qc7 {[%clk 0:02:24]} 13. g4 {[%clk 0:02:43]}  g6 {[%clk 0:02:05]} 14. Ng3 {[%clk 0:02:38]}  Ng7 {[%clk 0:02:05]} 15. Rg1 {[%clk 0:02:30]}  Kh8 {[%clk 0:02:04]} 16. Qd2 {[%clk 0:02:24]}  f5 {[%clk 0:02:03]} 17. gxf5 {[%clk 0:02:00]}  gxf5 {[%clk 0:02:04]} 18. Qh6 {[%clk 0:02:00]}  Rf6 {[%clk 0:01:52]} 19. Qd2 {[%clk 0:01:23]}  fxe4 {[%clk 0:01:46]} 20. Ng5 {[%clk 0:01:12]}  exd3 {[%clk 0:01:41]} 21. N3e4 {[%clk 0:01:03]}  Rf4 {[%clk 0:01:38]} 22. O-O-O {[%clk 0:00:55]}  c4 {[%clk 0:01:24]} 23. Qxf4 {[%clk 0:00:45]}  exf4 {[%clk 0:01:21]} 24. Bxd4 {[%clk 0:00:45]}  Ba3+ {[%clk 0:01:12]} 25. Kb1 {[%clk 0:00:34]}  dxc2+ {[%clk 0:01:11]} 26. Kxc2 {[%clk 0:00:35]}  cxb3+ {[%clk 0:01:04]} 27. axb3 {[%clk 0:00:34]}  Bf5 {[%clk 0:01:04]} 28. f3 {[%clk 0:00:26]}  h6 {[%clk 0:00:56]} 29. Bc3 {[%clk 0:00:11]}  Re8 {[%clk 0:00:19]} 30. Rg2 {[%clk 0:00:04]}  Bf8 {[%clk 0:00:17]} 31. Rdg1 {[%clk 0:00:04]}  hxg5 {[%clk 0:00:15]} 32. Rxg5 {[%clk 0:00:05]}  Bxe4+ {[%clk 0:00:14]} 33. fxe4 {[%clk 0:00:06]}  Rxe4 {[%clk 0:00:13]} 34. h4 {[%clk 0:00:05]}  Re2+ {[%clk 0:00:13]} 35. Kd3 {[%clk 0:00:05]}  Rh2 {[%clk 0:00:11]} 36. h5 {[%clk 0:00:05]}  Qd6+ {[%clk 0:00:10]} 37. Kc4 {[%clk 0:00:05]}  Qe6+ {[%clk 0:00:08]} 38. Kd3 {[%clk 0:00:06]}  Qe2+ {[%clk 0:00:08]} 39. Kd4 {[%clk 0:00:06]}  Qe3+ {[%clk 0:00:06]} 40. Kc4 {[%clk 0:00:06]}  Qe2+ {[%clk 0:00:06]} 41. Kd4 {[%clk 0:00:06]}  c5+ {[%clk 0:00:07]} 42. Kd5 {[%clk 0:00:04]}  Qe6# {[%clk 0:00:07]} 0-1


[Site "https://www.chess.com"]

[Event "Titled Tuesday Blitz June 13 Early 2023"]
[White "Starozhilov, Leonid"]
[Black "Bagwe Gaurang"]
[WhiteFideId "14106752"]
[BlackFideId "45039895"]
[WhiteElo "2352"]
[BlackElo "1847"]
[Result "1-0"]
[Round "5"]
[TimeControl "180+2"]
[Date "2023.06.13"]
[WhiteClock "0:00:05"]
[BlackClock "0:00:04"]
[Board "90"]

1. e4 {[%clk 0:03:00]}  c5 {[%clk 0:02:58]} 2. Nf3 {[%clk 0:03:00]}  d6 {[%clk 0:02:59]} 3. Bb5+ {[%clk 0:03:01]}  Nd7 {[%clk 0:02:53]} 4. O-O {[%clk 0:03:00]}  e5 {[%clk 0:02:52]} 5. c3 {[%clk 0:02:58]}  a6 {[%clk 0:02:52]} 6. Bxd7+ {[%clk 0:02:57]}  Bxd7 {[%clk 0:02:50]} 7. d4 {[%clk 0:02:58]}  Qc7 {[%clk 0:02:50]} 8. dxe5 {[%clk 0:02:49]}  dxe5 {[%clk 0:02:49]} 9. c4 {[%clk 0:02:50]}  Nf6 {[%clk 0:02:44]} 10. Nc3 {[%clk 0:02:51]}  Be7 {[%clk 0:02:44]} 11. Bg5 {[%clk 0:02:50]}  Bc6 {[%clk 0:02:36]} 12. Nd5 {[%clk 0:02:27]}  Bxd5 {[%clk 0:02:33]} 13. exd5 {[%clk 0:02:23]}  O-O-O {[%clk 0:02:04]} 14. Re1 {[%clk 0:02:16]}  Bd6 {[%clk 0:02:03]} 15. Bxf6 {[%clk 0:02:13]}  gxf6 {[%clk 0:02:04]} 16. Nh4 {[%clk 0:02:13]}  Rhg8 {[%clk 0:01:52]} 17. Qf3 {[%clk 0:02:07]}  e4 {[%clk 0:01:31]} 18. Rxe4 {[%clk 0:01:47]}  Bxh2+ {[%clk 0:01:31]} 19. Kf1 {[%clk 0:01:18]}  Be5 {[%clk 0:01:30]} 20. Nf5 {[%clk 0:01:07]}  Rg5 {[%clk 0:01:20]} 21. Rae1 {[%clk 0:00:46]}  Qd7 {[%clk 0:01:14]} 22. Ne3 {[%clk 0:00:26]}  Rdg8 {[%clk 0:01:13]} 23. b3 {[%clk 0:00:18]}  h5 {[%clk 0:01:13]} 24. Rh4 {[%clk 0:00:14]}  Rh8 {[%clk 0:01:00]} 25. g3 {[%clk 0:00:12]}  Kb8 {[%clk 0:00:55]} 26. Ng2 {[%clk 0:00:12]}  Rf5 {[%clk 0:00:11]} 27. Qd3 {[%clk 0:00:10]}  Bd4 {[%clk 0:00:08]} 28. Nf4 {[%clk 0:00:07]}  Re5 {[%clk 0:00:08]} 29. Qf3 {[%clk 0:00:06]}  Rf5 {[%clk 0:00:08]} 30. Kg2 {[%clk 0:00:05]}  Re5 {[%clk 0:00:08]} 31. Reh1 {[%clk 0:00:05]}  Rhe8 {[%clk 0:00:08]} 32. Rxh5 {[%clk 0:00:05]}  f5 {[%clk 0:00:08]} 33. Rh8 {[%clk 0:00:04]}  Ka7 {[%clk 0:00:08]} 34. Rxe8 {[%clk 0:00:05]}  Rxe8 {[%clk 0:00:09]} 35. Rh5 {[%clk 0:00:05]}  Re4 {[%clk 0:00:09]} 36. Ne2 {[%clk 0:00:04]}  Qe7 {[%clk 0:00:09]} 37. Nf4 {[%clk 0:00:04]}  Qe5 {[%clk 0:00:09]} 38. Nh3 {[%clk 0:00:05]}  Re2 {[%clk 0:00:09]} 39. Rxf5 {[%clk 0:00:05]}  Qe7 {[%clk 0:00:08]} 40. d6 {[%clk 0:00:05]}  Qd7 {[%clk 0:00:08]} 41. Rxf7 {[%clk 0:00:06]}  Qe8 {[%clk 0:00:04]} 42. Qxb7# {[%clk 0:00:05]} 1-0


[Site "https://www.chess.com"]

[Event "Titled Tuesday Blitz June 13 Early 2023"]
[White "Ronka, Erik"]
[Black "Makhnev, Denis"]
[WhiteFideId "505080"]
[BlackFideId "13707647"]
[WhiteElo "2264"]
[BlackElo "2515"]
[Result "0-1"]
[Round "5"]
[TimeControl "180+2"]
[Date "2023.06.13"]
[WhiteClock "0:00:03"]
[BlackClock "0:00:04"]
[Board "93"]

1. d4 {[%clk 0:03:00]}  d5 {[%clk 0:02:58]} 2. Nc3 {[%clk 0:03:01]}  Nf6 {[%clk 0:02:57]} 3. Bf4 {[%clk 0:03:01]}  Bf5 {[%clk 0:02:55]} 4. f3 {[%clk 0:03:01]}  e6 {[%clk 0:02:54]} 5. Qd2 {[%clk 0:02:59]}  Bd6 {[%clk 0:02:53]} 6. g4 {[%clk 0:02:54]}  Bg6 {[%clk 0:02:46]} 7. h4 {[%clk 0:02:52]}  h5 {[%clk 0:02:40]} 8. g5 {[%clk 0:02:50]}  Nfd7 {[%clk 0:02:39]} 9. O-O-O {[%clk 0:02:45]}  O-O {[%clk 0:02:35]} 10. Nh3 {[%clk 0:02:42]}  Nc6 {[%clk 0:02:23]} 11. Bxd6 {[%clk 0:02:40]}  cxd6 {[%clk 0:02:24]} 12. Nf4 {[%clk 0:02:40]}  Nb6 {[%clk 0:02:17]} 13. e4 {[%clk 0:02:26]}  dxe4 {[%clk 0:02:16]} 14. fxe4 {[%clk 0:02:27]}  e5 {[%clk 0:02:13]} 15. Nxg6 {[%clk 0:02:20]}  fxg6 {[%clk 0:02:14]} 16. dxe5 {[%clk 0:01:51]}  dxe5 {[%clk 0:02:12]} 17. Nd5 {[%clk 0:01:47]}  Rc8 {[%clk 0:01:58]} 18. Kb1 {[%clk 0:01:42]}  Nd4 {[%clk 0:01:16]} 19. c3 {[%clk 0:01:36]}  Nxd5 {[%clk 0:00:59]} 20. exd5 {[%clk 0:01:28]}  Nf5 {[%clk 0:00:43]} 21. Bh3 {[%clk 0:01:08]}  Qd6 {[%clk 0:00:40]} 22. Rhe1 {[%clk 0:00:53]}  Rc4 {[%clk 0:00:38]} 23. Bf1 {[%clk 0:00:09]}  Rxh4 {[%clk 0:00:36]} 24. Qf2 {[%clk 0:00:06]}  b6 {[%clk 0:00:32]} 25. Bd3 {[%clk 0:00:02]}  Rf4 {[%clk 0:00:29]} 26. Qc2 {[%clk 0:00:03]}  Kh7 {[%clk 0:00:23]} 27. c4 {[%clk 0:00:03]}  Nd4 {[%clk 0:00:19]} 28. Qh2 {[%clk 0:00:02]}  Kg8 {[%clk 0:00:15]} 29. a3 {[%clk 0:00:01]}  Nf3 {[%clk 0:00:14]} 30. Qe2 {[%clk 0:00:01]}  Nxe1 {[%clk 0:00:13]} 31. Qxe1 {[%clk 0:00:02]}  e4 {[%clk 0:00:11]} 32. Bc2 {[%clk 0:00:02]}  Re8 {[%clk 0:00:06]} 33. Qc3 {[%clk 0:00:02]}  e3 {[%clk 0:00:05]} 34. b4 {[%clk 0:00:02]}  e2 {[%clk 0:00:05]} 35. Re1 {[%clk 0:00:03]}  Rf1 {[%clk 0:00:05]} 36. c5 {[%clk 0:00:03]}  bxc5 {[%clk 0:00:04]} 37. bxc5 {[%clk 0:00:04]}  Rxe1+ {[%clk 0:00:04]} 38. Qxe1 {[%clk 0:00:04]}  Qxc5 {[%clk 0:00:05]} 39. Kc1 {[%clk 0:00:04]}  Qe3+ {[%clk 0:00:04]} 40. Kb2 {[%clk 0:00:03]}  Rb8+ {[%clk 0:00:05]} 41. Ka1 {[%clk 0:00:03]}  Qd4+ {[%clk 0:00:04]} 42. Ka2 {[%clk 0:00:03]}  Qb2# {[%clk 0:00:04]} 0-1


[Site "https://www.chess.com"]